{"text_format":"3","workbook":"xlsx","n_sheets":14,"sheets":["suggerimenti","riepilogo","gen","feb","mar","apr","mag","giu","lug","ago","set","ott","nov","dic"],"not_rendered":{"charts":1,"defined_names":27},"read":"whole","date_system":"1900"}

{"sheet":"suggerimenti","index":0,"n_rows":18,"n_cols":1,"rows_kept":18}
["SUGGERIMENTI MODELLO"]
["Esiste un modo semplice per passare tra il foglio di riepilogo Trend di spesa e i dettagli delle spese mensili?"]
["Per passare rapidamente alle spese di un mese specifico, fare clic sul collegamento associato sopra il grafico, ad esempio Gen in B2. Quindi, per tornare nel foglio di lavoro Trend di spesa, fare clic sul collegamento Riepilogo in D1. "]
["Per tornare in questo foglio di lavoro dei suggerimenti, selezionare N2 nel foglio Riepilogo. Da tutti i fogli di lavoro dei mesi selezionare E1."]
["Come si aggiunge un nuovo tipo di spesa al Riepilogo spese o alle nuove spese mensili?"]
["Il riepilogo delle spese sotto il grafico e i dettagli delle spese per ogni mese sono tabelle di Excel. Per aggiungere nuove righe a una tabella di Excel, eseguire una delle operazioni seguenti:"]
[{"$f":"ROW(A1)&\". Se la tabella non include una riga Totale, iniziare a digitare sotto la tabella perché si espanda automaticamente quando si preme INVIO o TAB.\"","v":"1. Se la tabella non include una riga Totale, iniziare a digitare sotto la tabella perché si espanda automaticamente quando si preme INVIO o TAB."}]
[{"$f":"ROW(A2)&\". Posizionare il puntatore di cella nell'ultima cella sopra la riga Totale, ad esempio il totale per l'ultima spesa, e quindi premere TAB.\"","v":"2. Posizionare il puntatore di cella nell'ultima cella sopra la riga Totale, ad esempio il totale per l'ultima spesa, e quindi premere TAB."}]
[{"$f":"ROW(A3)&\". Fare clic con il pulsante destro del mouse nella tabella e scegliere Inserisci dal menu di scelta rapida, quindi fare clic su Righe tabella sopra o Righe tabella sotto.\"","v":"3. Fare clic con il pulsante destro del mouse nella tabella e scegliere Inserisci dal menu di scelta rapida, quindi fare clic su Righe tabella sopra o Righe tabella sotto."}]
[{"$f":"ROW(A4)&\". Nell'angolo in basso a destra della tabella posizionare il mouse sul quadratino di ridimensionamento della tabella e trascinarlo verso il basso per aumentare il numero di righe di tabella disponibili.\"","v":"4. Nell'angolo in basso a destra della tabella posizionare il mouse sul quadratino di ridimensionamento della tabella e trascinarlo verso il basso per aumentare il numero di righe di tabella disponibili."}]
["Immettere la spesa nel foglio di lavoro riepilogo nella colonna Spese della tabella RiepilogoSpese."]
["Aggiungere l'importo per ogni tipo di spesa nel foglio di lavoro del mese applicabile."]
["Esempio: \"Spesa 1\" si verifica nei mesi da gennaio a giugno e dicembre. "]
[{"$f":"ROW(A1)&\". La riga Spesa 1 viene immessa nel foglio di lavoro di riepilogo sotto Spese nella tabella RiepilogoSpese (come titolo per il tipo di spesa)\"","v":"1. La riga Spesa 1 viene immessa nel foglio di lavoro di riepilogo sotto Spese nella tabella RiepilogoSpese (come titolo per il tipo di spesa)"}]
[{"$f":"ROW(A2)&\". Per ogni mese in cui si verificano spese, immettere l'importo delle spese nel foglio di lavoro del mese corrispondente.\"","v":"2. Per ogni mese in cui si verificano spese, immettere l'importo delle spese nel foglio di lavoro del mese corrispondente."}]
[{"$f":"ROW(A3)&\". Il tipo di spesa dal foglio di lavoro RiepilogoSpese crea un elenco di categorie per la colonna Categoria nel foglio di lavoro di ogni mese.\"","v":"3. Il tipo di spesa dal foglio di lavoro RiepilogoSpese crea un elenco di categorie per la colonna Categoria nel foglio di lavoro di ogni mese."}]
[{"$f":"ROW(A4)&\". Usare l'elenco di categorie nella colonna Categoria per selezionare il tipo di spesa corrispondente per l'importo delle spese immesso\"","v":"4. Usare l'elenco di categorie nella colonna Categoria per selezionare il tipo di spesa corrispondente per l'importo delle spese immesso"}]
[{"$f":"ROW(A5)&\". Per aggiungere nuove spese per qualsiasi mese, aggiungere una nuova riga alla tabella RiepilogoSpese nel foglio di lavoro di riepilogo, quindi immettere i dettagli delle spese corrispondenti nel foglio di lavoro del mese a cui si applicano.\"","v":"5. Per aggiungere nuove spese per qualsiasi mese, aggiungere una nuova riga alla tabella RiepilogoSpese nel foglio di lavoro di riepilogo, quindi immettere i dettagli delle spese corrispondenti nel foglio di lavoro del mese a cui si applicano."}]

{"sheet":"riepilogo","index":1,"n_rows":10,"n_cols":15,"rows_kept":10}
["TREND DI SPESA"]
[null,"Gen","Feb","Mar","Apr","Mag","Giu","Lug","Ago","Set","Ott","Nov","Dic","Suggerimenti"]
[]
["Spese","Gen","Feb","Mar","Apr","Mag","Giu","Lug","Ago","Set","Ott","Nov","Dic","Totale","Tendenza"]
["Spesa 1",{"$f":"SUMIFS(SpeGen[Importo],SpeGen[Categoria],RiepilogoSpese[Spese])","v":{"v":33,"d":"33.00"}},{"$f":"SUMIFS(SpeFeb[Importo],SpeFeb[Categoria],RiepilogoSpese[Spese])","v":{"v":375,"d":"375.00"}},{"$f":"SUMIFS(SpeMar[Importo],SpeMar[Categoria],RiepilogoSpese[Spese])","v":{"v":33,"d":"33.00"}},{"$f":"SUMIFS(SpeApr[Importo],SpeApr[Categoria],RiepilogoSpese[Spese])","v":{"v":45,"d":"45.00"}},{"$f":"SUMIFS(SpeMag[Importo],SpeMag[Categoria],RiepilogoSpese[Spese])","v":{"v":375,"d":"375.00"}},{"$f":"SUMIFS(SpeGiu[Importo],SpeGiu[Categoria],RiepilogoSpese[Spese])","v":{"v":201,"d":"201.00"}},{"$f":"SUMIFS(SpeLug[Importo],SpeLug[Categoria],RiepilogoSpese[Spese])","v":{"v":0,"d":"0.00"}},{"$f":"SUMIFS(SpeAgo[Importo],SpeAgo[Categoria],RiepilogoSpese[Spese])","v":{"v":0,"d":"0.00"}},{"$f":"SUMIFS(SpeSet[Importo],SpeSet[Categoria],RiepilogoSpese[Spese])","v":{"v":0,"d":"0.00"}},{"$f":"SUMIFS(SpeOtt[Importo],SpeOtt[Categoria],RiepilogoSpese[Spese])","v":{"v":0,"d":"0.00"}},{"$f":"SUMIFS(SpeNov[Importo],SpeNov[Categoria],RiepilogoSpese[Spese])","v":{"v":0,"d":"0.00"}},{"$f":"SUMIFS(SpeDic[Importo],SpeDic[Categoria],RiepilogoSpese[Spese])","v":{"v":201,"d":"201.00"}},{"$f":"SUM(RiepilogoSpese[[#This Row],[Gen]:[Dic]])","v":{"v":1263,"d":"1,263.00"}}]
["Spesa 2",{"$f":"SUMIFS(SpeGen[Importo],SpeGen[Categoria],RiepilogoSpese[Spese])","v":{"v":238,"d":"238.00"}},{"$f":"SUMIFS(SpeFeb[Importo],SpeFeb[Categoria],RiepilogoSpese[Spese])","v":{"v":238,"d":"238.00"}},{"$f":"SUMIFS(SpeMar[Importo],SpeMar[Categoria],RiepilogoSpese[Spese])","v":{"v":238,"d":"238.00"}},{"$f":"SUMIFS(SpeApr[Importo],SpeApr[Categoria],RiepilogoSpese[Spese])","v":{"v":123,"d":"123.00"}},{"$f":"SUMIFS(SpeMag[Importo],SpeMag[Categoria],RiepilogoSpese[Spese])","v":{"v":111,"d":"111.00"}},{"$f":"SUMIFS(SpeGiu[Importo],SpeGiu[Categoria],RiepilogoSpese[Spese])","v":{"v":98,"d":"98.00"}},{"$f":"SUMIFS(SpeLug[Importo],SpeLug[Categoria],RiepilogoSpese[Spese])","v":{"v":0,"d":"0.00"}},{"$f":"SUMIFS(SpeAgo[Importo],SpeAgo[Categoria],RiepilogoSpese[Spese])","v":{"v":0,"d":"0.00"}},{"$f":"SUMIFS(SpeSet[Importo],SpeSet[Categoria],RiepilogoSpese[Spese])","v":{"v":0,"d":"0.00"}},{"$f":"SUMIFS(SpeOtt[Importo],SpeOtt[Categoria],RiepilogoSpese[Spese])","v":{"v":0,"d":"0.00"}},{"$f":"SUMIFS(SpeNov[Importo],SpeNov[Categoria],RiepilogoSpese[Spese])","v":{"v":0,"d":"0.00"}},{"$f":"SUMIFS(SpeDic[Importo],SpeDic[Categoria],RiepilogoSpese[Spese])","v":{"v":440,"d":"440.00"}},{"$f":"SUM(RiepilogoSpese[[#This Row],[Gen]:[Dic]])","v":{"v":1486,"d":"1,486.00"}}]
["Spesa 3",{"$f":"SUMIFS(SpeGen[Importo],SpeGen[Categoria],RiepilogoSpese[Spese])","v":{"v":110,"d":"110.00"}},{"$f":"SUMIFS(SpeFeb[Importo],SpeFeb[Categoria],RiepilogoSpese[Spese])","v":{"v":110,"d":"110.00"}},{"$f":"SUMIFS(SpeMar[Importo],SpeMar[Categoria],RiepilogoSpese[Spese])","v":{"v":110,"d":"110.00"}},{"$f":"SUMIFS(SpeApr[Importo],SpeApr[Categoria],RiepilogoSpese[Spese])","v":{"v":125,"d":"125.00"}},{"$f":"SUMIFS(SpeMag[Importo],SpeMag[Categoria],RiepilogoSpese[Spese])","v":{"v":333,"d":"333.00"}},{"$f":"SUMIFS(SpeGiu[Importo],SpeGiu[Categoria],RiepilogoSpese[Spese])","v":{"v":122,"d":"122.00"}},{"$f":"SUMIFS(SpeLug[Importo],SpeLug[Categoria],RiepilogoSpese[Spese])","v":{"v":0,"d":"0.00"}},{"$f":"SUMIFS(SpeAgo[Importo],SpeAgo[Categoria],RiepilogoSpese[Spese])","v":{"v":0,"d":"0.00"}},{"$f":"SUMIFS(SpeSet[Importo],SpeSet[Categoria],RiepilogoSpese[Spese])","v":{"v":0,"d":"0.00"}},{"$f":"SUMIFS(SpeOtt[Importo],SpeOtt[Categoria],RiepilogoSpese[Spese])","v":{"v":0,"d":"0.00"}},{"$f":"SUMIFS(SpeNov[Importo],SpeNov[Categoria],RiepilogoSpese[Spese])","v":{"v":0,"d":"0.00"}},{"$f":"SUMIFS(SpeDic[Importo],SpeDic[Categoria],RiepilogoSpese[Spese])","v":{"v":122,"d":"122.00"}},{"$f":"SUM(RiepilogoSpese[[#This Row],[Gen]:[Dic]])","v":{"v":1032,"d":"1,032.00"}}]
["Spesa 4",{"$f":"SUMIFS(SpeGen[Importo],SpeGen[Categoria],RiepilogoSpese[Spese])","v":{"v":426,"d":"426.00"}},{"$f":"SUMIFS(SpeFeb[Importo],SpeFeb[Categoria],RiepilogoSpese[Spese])","v":{"v":84,"d":"84.00"}},{"$f":"SUMIFS(SpeMar[Importo],SpeMar[Categoria],RiepilogoSpese[Spese])","v":{"v":84,"d":"84.00"}},{"$f":"SUMIFS(SpeApr[Importo],SpeApr[Categoria],RiepilogoSpese[Spese])","v":{"v":426,"d":"426.00"}},{"$f":"SUMIFS(SpeMag[Importo],SpeMag[Categoria],RiepilogoSpese[Spese])","v":{"v":125,"d":"125.00"}},{"$f":"SUMIFS(SpeGiu[Importo],SpeGiu[Categoria],RiepilogoSpese[Spese])","v":{"v":187,"d":"187.00"}},{"$f":"SUMIFS(SpeLug[Importo],SpeLug[Categoria],RiepilogoSpese[Spese])","v":{"v":0,"d":"0.00"}},{"$f":"SUMIFS(SpeAgo[Importo],SpeAgo[Categoria],RiepilogoSpese[Spese])","v":{"v":0,"d":"0.00"}},{"$f":"SUMIFS(SpeSet[Importo],SpeSet[Categoria],RiepilogoSpese[Spese])","v":{"v":0,"d":"0.00"}},{"$f":"SUMIFS(SpeOtt[Importo],SpeOtt[Categoria],RiepilogoSpese[Spese])","v":{"v":0,"d":"0.00"}},{"$f":"SUMIFS(SpeNov[Importo],SpeNov[Categoria],RiepilogoSpese[Spese])","v":{"v":0,"d":"0.00"}},{"$f":"SUMIFS(SpeDic[Importo],SpeDic[Categoria],RiepilogoSpese[Spese])","v":{"v":187,"d":"187.00"}},{"$f":"SUM(RiepilogoSpese[[#This Row],[Gen]:[Dic]])","v":{"v":1519,"d":"1,519.00"}}]
["Spesa 5",{"$f":"SUMIFS(SpeGen[Importo],SpeGen[Categoria],RiepilogoSpese[Spese])","v":{"v":54,"d":"54.00"}},{"$f":"SUMIFS(SpeFeb[Importo],SpeFeb[Categoria],RiepilogoSpese[Spese])","v":{"v":54,"d":"54.00"}},{"$f":"SUMIFS(SpeMar[Importo],SpeMar[Categoria],RiepilogoSpese[Spese])","v":{"v":109,"d":"109.00"}},{"$f":"SUMIFS(SpeApr[Importo],SpeApr[Categoria],RiepilogoSpese[Spese])","v":{"v":98,"d":"98.00"}},{"$f":"SUMIFS(SpeMag[Importo],SpeMag[Categoria],RiepilogoSpese[Spese])","v":{"v":33,"d":"33.00"}},{"$f":"SUMIFS(SpeGiu[Importo],SpeGiu[Categoria],RiepilogoSpese[Spese])","v":{"v":441,"d":"441.00"}},{"$f":"SUMIFS(SpeLug[Importo],SpeLug[Categoria],RiepilogoSpese[Spese])","v":{"v":0,"d":"0.00"}},{"$f":"SUMIFS(SpeAgo[Importo],SpeAgo[Categoria],RiepilogoSpese[Spese])","v":{"v":0,"d":"0.00"}},{"$f":"SUMIFS(SpeSet[Importo],SpeSet[Categoria],RiepilogoSpese[Spese])","v":{"v":0,"d":"0.00"}},{"$f":"SUMIFS(SpeOtt[Importo],SpeOtt[Categoria],RiepilogoSpese[Spese])","v":{"v":0,"d":"0.00"}},{"$f":"SUMIFS(SpeNov[Importo],SpeNov[Categoria],RiepilogoSpese[Spese])","v":{"v":0,"d":"0.00"}},{"$f":"SUMIFS(SpeDic[Importo],SpeDic[Categoria],RiepilogoSpese[Spese])","v":{"v":99,"d":"99.00"}},{"$f":"SUM(RiepilogoSpese[[#This Row],[Gen]:[Dic]])","v":{"v":888,"d":"888.00"}}]
["Totale",{"$f":"SUBTOTAL(109,RiepilogoSpese[Gen])","v":{"v":861,"d":"861.00"}},{"$f":"SUBTOTAL(109,RiepilogoSpese[Feb])","v":{"v":861,"d":"861.00"}},{"$f":"SUBTOTAL(109,RiepilogoSpese[Mar])","v":{"v":574,"d":"574.00"}},{"$f":"SUBTOTAL(109,RiepilogoSpese[Apr])","v":{"v":817,"d":"817.00"}},{"$f":"SUBTOTAL(109,RiepilogoSpese[Mag])","v":{"v":977,"d":"977.00"}},{"$f":"SUBTOTAL(109,RiepilogoSpese[Giu])","v":{"v":1049,"d":"1,049.00"}},{"$f":"SUBTOTAL(109,RiepilogoSpese[Lug])","v":{"v":0,"d":"0.00"}},{"$f":"SUBTOTAL(109,RiepilogoSpese[Ago])","v":{"v":0,"d":"0.00"}},{"$f":"SUBTOTAL(109,RiepilogoSpese[Set])","v":{"v":0,"d":"0.00"}},{"$f":"SUBTOTAL(109,RiepilogoSpese[Ott])","v":{"v":0,"d":"0.00"}},{"$f":"SUBTOTAL(109,RiepilogoSpese[Nov])","v":{"v":0,"d":"0.00"}},{"$f":"SUBTOTAL(109,RiepilogoSpese[Dic])","v":{"v":1049,"d":"1,049.00"}},{"$f":"SUBTOTAL(109,RiepilogoSpese[Totale])","v":{"v":6188,"d":"6,188.00"}}]

{"sheet":"gen","index":2,"n_rows":9,"n_cols":5,"rows_kept":9,"merged":[[0,0,0,2]]}
["SPESE GENNAIO",null,null,"Riepilogo","Suggerimenti"]
["Data","N. PO","Importo","Categoria","Descrizione"]
[{"$f":"DATE(YEAR(TODAY()),1,4)","v":"2016-01-04"},"A-12345",{"v":33,"d":"33.00"},"Spesa 1","Forniture"]
[{"$f":"DATE(YEAR(TODAY()),1,5)","v":"2016-01-05"},"A-12346",{"v":238,"d":"238.00"},"Spesa 2"]
[null,null,{"v":342,"d":"342.00"},"Spesa 4"]
[null,null,{"v":110,"d":"110.00"},"Spesa 3"]
[null,null,{"v":84,"d":"84.00"},"Spesa 4"]
[null,null,{"v":54,"d":"54.00"},"Spesa 5"]
["Totale",null,{"$f":"SUBTOTAL(109,SpeGen[Importo])","v":{"v":861,"d":"861.00"}}]

{"sheet":"feb","index":3,"n_rows":9,"n_cols":5,"rows_kept":9,"merged":[[0,0,0,2]]}
["SPESE FEBBRAIO",null,null,"Riepilogo","Suggerimenti"]
["Data","N. PO","Importo","Categoria","Descrizione"]
[{"$f":"DATE(YEAR(TODAY()),2,3)","v":"2016-02-03"},"A-12345",{"v":33,"d":"33.00"},"Spesa 1","Forniture"]
[{"$f":"DATE(YEAR(TODAY()),2,4)","v":"2016-02-04"},"A-12346",{"v":238,"d":"238.00"},"Spesa 2"]
[null,null,{"v":342,"d":"342.00"},"Spesa 1"]
[null,null,{"v":110,"d":"110.00"},"Spesa 3"]
[null,null,{"v":84,"d":"84.00"},"Spesa 4"]
[null,null,{"v":54,"d":"54.00"},"Spesa 5"]
["Totale",null,{"$f":"SUBTOTAL(109,SpeFeb[Importo])","v":{"v":861,"d":"861.00"}}]

{"sheet":"mar","index":4,"n_rows":9,"n_cols":5,"rows_kept":9,"merged":[[0,0,0,2]]}
["SPESE MARZO",null,null,"Riepilogo","Suggerimenti"]
["Data","N. PO","Importo","Categoria","Descrizione"]
[{"$f":"DATE(YEAR(TODAY()),3,5)","v":"2016-03-05"},"A-12345",{"v":33,"d":"33.00"},"Spesa 1","Forniture"]
[{"$f":"DATE(YEAR(TODAY()),3,6)","v":"2016-03-06"},"A-12346",{"v":238,"d":"238.00"},"Spesa 2"]
[null,null,{"v":55,"d":"55.00"},"Spesa 5"]
[null,null,{"v":110,"d":"110.00"},"Spesa 3"]
[null,null,{"v":84,"d":"84.00"},"Spesa 4"]
[null,null,{"v":54,"d":"54.00"},"Spesa 5"]
["Totale",null,{"$f":"SUBTOTAL(109,SpeMar[Importo])","v":{"v":574,"d":"574.00"}}]

{"sheet":"apr","index":5,"n_rows":9,"n_cols":5,"rows_kept":9,"merged":[[0,0,0,2]]}
["SPESE APRILE",null,null,"Riepilogo","Suggerimenti"]
["Data","N. PO","Importo","Categoria","Descrizione"]
[{"$f":"DATE(YEAR(TODAY()),4,4)","v":"2016-04-04"},"A-12345",{"v":45,"d":"45.00"},"Spesa 1","Forniture"]
[{"$f":"DATE(YEAR(TODAY()),4,8)","v":"2016-04-08"},"A-12346",{"v":123,"d":"123.00"},"Spesa 2"]
[null,null,{"v":342,"d":"342.00"},"Spesa 4"]
[null,null,{"v":125,"d":"125.00"},"Spesa 3"]
[null,null,{"v":84,"d":"84.00"},"Spesa 4"]
[null,null,{"v":98,"d":"98.00"},"Spesa 5"]
["Totale",null,{"$f":"SUBTOTAL(109,SpeApr[Importo])","v":{"v":817,"d":"817.00"}}]

{"sheet":"mag","index":6,"n_rows":9,"n_cols":5,"rows_kept":9,"merged":[[0,0,0,2]]}
["SPESE MAGGIO",null,null,"Riepilogo","Suggerimenti"]
["Data","N. PO","Importo","Categoria","Descrizione"]
[{"$f":"DATE(YEAR(TODAY()),5,3)","v":"2016-05-03"},"A-12345",{"v":33,"d":"33.00"},"Spesa 1","Forniture"]
[{"$f":"DATE(YEAR(TODAY()),5,8)","v":"2016-05-08"},"A-12346",{"v":111,"d":"111.00"},"Spesa 2"]
[null,null,{"v":342,"d":"342.00"},"Spesa 1"]
[null,null,{"v":333,"d":"333.00"},"Spesa 3"]
[null,null,{"v":125,"d":"125.00"},"Spesa 4"]
[null,null,{"v":33,"d":"33.00"},"Spesa 5"]
["Totale",null,{"$f":"SUBTOTAL(109,SpeMag[Importo])","v":{"v":977,"d":"977.00"}}]

{"sheet":"giu","index":7,"n_rows":9,"n_cols":5,"rows_kept":9,"merged":[[0,0,0,2]]}
["SPESE GIUGNO",null,null,"Riepilogo","Suggerimenti"]
["Data","N. PO","Importo","Categoria","Descrizione"]
[{"$f":"DATE(YEAR(TODAY()),6,7)","v":"2016-06-07"},"A-12345",{"v":201,"d":"201.00"},"Spesa 1","Forniture"]
[{"$f":"DATE(YEAR(TODAY()),6,8)","v":"2016-06-08"},"A-12346",{"v":98,"d":"98.00"},"Spesa 2"]
[null,null,{"v":342,"d":"342.00"},"Spesa 5"]
[null,null,{"v":122,"d":"122.00"},"Spesa 3"]
[null,null,{"v":187,"d":"187.00"},"Spesa 4"]
[null,null,{"v":99,"d":"99.00"},"Spesa 5"]
["Totale",null,{"$f":"SUBTOTAL(109,SpeGiu[Importo])","v":{"v":1049,"d":"1,049.00"}}]

{"sheet":"lug","index":8,"n_rows":9,"n_cols":5,"rows_kept":9,"merged":[[0,0,0,2]]}
["SPESE LUGLIO",null,null,"Riepilogo","Suggerimenti"]
["Data","N. PO","Importo","Categoria","Descrizione"]
[{"$f":"DATE(YEAR(TODAY()),7,9)","v":"2016-07-09"},"A-12345",null,"Spesa 1","Forniture"]
[{"$f":"DATE(YEAR(TODAY()),7,14)","v":"2016-07-14"},"A-12346",null,"Spesa 2"]
[{"$nulls":3},"Spesa 2"]
[{"$nulls":3},"Spesa 3"]
[{"$nulls":3},"Spesa 4"]
[{"$nulls":3},"Spesa 5"]
["Totale",null,{"$f":"SUBTOTAL(109,SpeLug[Importo])","v":{"v":0,"d":"0.00"}}]

{"sheet":"ago","index":9,"n_rows":9,"n_cols":5,"rows_kept":9,"merged":[[0,0,0,2]]}
["SPESE AGOSTO",null,null,"Riepilogo","Suggerimenti"]
["Data","N. PO","Importo","Categoria","Descrizione"]
[{"$f":"DATE(YEAR(TODAY()),8,8)","v":"2016-08-08"},"A-12345",null,"Spesa 1","Forniture"]
[{"$f":"DATE(YEAR(TODAY()),8,9)","v":"2016-08-09"},"A-12346",null,"Spesa 2"]
[{"$nulls":3},"Spesa 2"]
[{"$nulls":3},"Spesa 3"]
[{"$nulls":3},"Spesa 4"]
[{"$nulls":3},"Spesa 5"]
["Totale",null,{"$f":"SUBTOTAL(109,SpeAgo[Importo])","v":{"v":0,"d":"0.00"}}]

{"sheet":"set","index":10,"n_rows":9,"n_cols":5,"rows_kept":9,"merged":[[0,0,0,2]]}
["SPESE SETTEMBRE",null,null,"Riepilogo","Suggerimenti"]
["Data","N. PO","Importo","Categoria","Descrizione"]
[{"$f":"DATE(YEAR(TODAY()),9,9)","v":"2016-09-09"},"A-12345",null,"Spesa 1","Forniture"]
[{"$f":"DATE(YEAR(TODAY()),9,15)","v":"2016-09-15"},"A-12346",null,"Spesa 2"]
[{"$nulls":3},"Spesa 2"]
[{"$nulls":3},"Spesa 3"]
[{"$nulls":3},"Spesa 4"]
[{"$nulls":3},"Spesa 5"]
["Totale",null,{"$f":"SUBTOTAL(109,SpeSet[Importo])","v":{"v":0,"d":"0.00"}}]

{"sheet":"ott","index":11,"n_rows":9,"n_cols":5,"rows_kept":9,"merged":[[0,0,0,2]]}
["SPESE OTTOBRE",null,null,"Riepilogo","Suggerimenti"]
["Data","N. PO","Importo","Categoria","Descrizione"]
[{"$f":"DATE(YEAR(TODAY()),10,10)","v":"2016-10-10"},"A-12345",null,"Spesa 1","Forniture"]
[{"$f":"DATE(YEAR(TODAY()),10,21)","v":"2016-10-21"},"A-12346",null,"Spesa 2"]
[{"$nulls":3},"Spesa 2"]
[{"$nulls":3},"Spesa 3"]
[{"$nulls":3},"Spesa 4"]
[{"$nulls":3},"Spesa 5"]
["Totale",null,{"$f":"SUBTOTAL(109,SpeOtt[Importo])","v":{"v":0,"d":"0.00"}}]

{"sheet":"nov","index":12,"n_rows":9,"n_cols":5,"rows_kept":9,"merged":[[0,0,0,2]]}
["SPESE NOVEMBRE",null,null,"Riepilogo","Suggerimenti"]
["Data","N. PO","Importo","Categoria","Descrizione"]
[{"$f":"DATE(YEAR(TODAY()),11,14)","v":"2016-11-14"},"A-12345",null,"Spesa 1","Forniture"]
[{"$f":"DATE(YEAR(TODAY()),11,21)","v":"2016-11-21"},"A-12346",null,"Spesa 2"]
[{"$nulls":3},"Spesa 2"]
[{"$nulls":3},"Spesa 3"]
[{"$nulls":3},"Spesa 4"]
[{"$nulls":3},"Spesa 5"]
["Totale",null,{"$f":"SUBTOTAL(109,SpeNov[Importo])","v":{"v":0,"d":"0.00"}}]

{"sheet":"dic","index":13,"n_rows":9,"n_cols":5,"rows_kept":9,"merged":[[0,0,0,2]]}
["SPESE DICEMBRE",null,null,"Riepilogo","Suggerimenti"]
["Data","N. PO","Importo","Categoria","Descrizione"]
[{"$f":"DATE(YEAR(TODAY()),12,2)","v":"2016-12-02"},"A-12345",{"v":201,"d":"201.00"},"Spesa 1","Forniture"]
[{"$f":"DATE(YEAR(TODAY()),12,24)","v":"2016-12-24"},"A-12346",{"v":98,"d":"98.00"},"Spesa 2"]
[null,null,{"v":342,"d":"342.00"},"Spesa 2"]
[null,null,{"v":122,"d":"122.00"},"Spesa 3"]
[null,null,{"v":187,"d":"187.00"},"Spesa 4"]
[null,null,{"v":99,"d":"99.00"},"Spesa 5"]
["Totale",null,{"$f":"SUBTOTAL(109,SpeDic[Importo])","v":{"v":1049,"d":"1,049.00"}}]